bitfinex/quotes_SOLUSD_20230905
["timestamp","ask_amount","ask_price","bid_price","bid_amount"]
[1693901438786,8.029,19.428,19.42,20.0]
[1693901439179,8.029,19.429,19.42,28.032]
[1693901439491,55.0,19.428,19.42,28.032]
[1693901440593,55.0,19.429,19.42,28.032]
[1693901442592,63.029,19.429,19.42,20.0]
[1693901442788,63.029,19.429,19.42,28.032]
[1693901445184,55.0,19.429,19.42,28.032]
[1693901450292,55.0,19.43,19.42,28.032]
[1693901450790,63.028,19.43,19.42,28.032]
[1693901451096,89.558,19.43,19.42,28.032]
[1693901459603,55.0,19.43,19.42,28.032]
[1693901459803,55.0,19.431,19.42,28.032]
[1693901460205,55.0,19.431,19.42,54.562]
[1693901460805,63.028,19.431,19.42,54.562]
[1693901461507,63.028,19.431,19.42,28.032]
[1693901468607,63.028,19.431,19.42,20.0]
[1693901468811,46.53,19.43,19.416,15.52986611]
[1693901469009,33.974,19.426,19.416,15.52986611]
[1693901469507,8.032,19.421,19.411,8.036]
[1693901471900,55.0,19.42,19.41,34.567]
[1693901472196,63.033,19.42,19.41,34.567]
[1693901472609,55.0,19.42,19.41,34.567]
[1693901473910,63.033,19.42,19.41,34.567]
[1693901474204,55.0,19.42,19.41,34.567]
[1693901474409,55.0,19.421,19.41,34.567]
[1693901474596,63.032,19.421,19.41,34.567]
[1693901475305,55.0,19.421,19.41,34.567]
[1693901475512,55.0,19.422,19.41,34.567]
[1693901479013,63.032,19.422,19.41,34.567]
[1693901488309,63.032,19.422,19.41,8.037]
[1693901494908,63.032,19.422,19.405,8.038]
[1693901494909,8.035,19.415,19.405,8.038]
[1693901495304,8.034,19.416,19.405,8.038]
[1693901495506,55.0,19.415,19.405,8.038]
[1693901496502,26.53,19.42,19.405,8.038]
[1693901496817,8.035,19.415,19.402,8.04]
[1693901497003,55.0,19.414,19.402,8.04]
[1693901497315,8.036,19.412,19.402,8.04]
[1693901497515,55.0,19.411,19.402,8.04]
[1693901497724,55.0,19.411,19.402,34.016]
[1693901499216,63.036,19.412,19.402,8.04]
[1693901499801,91.7601,19.411,19.402,8.04]
[1693901499999,55.0,19.41,19.402,8.04]
[1693901501310,91.7601,19.411,19.402,8.04]
[1693901505923,8.036,19.413,19.402,8.04]
[1693901506111,55.0,19.412,19.402,8.04]
[1693901506311,174.93322679,19.421,19.402,8.04]
[1693901506623,55.0,19.418,19.402,8.04]
[1693901507826,8.035,19.415,19.402,8.04]
[1693901508019,55.0,19.414,19.402,8.04]
[1693901508222,8.036,19.413,19.402,8.04]
[1693901508517,55.0,19.412,19.402,8.04]
[1693901508821,63.036,19.412,19.402,8.04]
[1693901510530,63.036,19.412,19.401,8.04]
[1693901511924,101.5582,19.411,19.401,8.04]
[1693901512110,55.0,19.41,19.401,8.04]
[1693901513928,93.5222,19.411,19.401,8.04]
[1693901514531,8.034,19.416,19.401,8.04]
[1693901514734,8.035,19.415,19.401,8.04]
[1693901516315,55.0,19.414,19.401,8.04]
[1693901516930,63.035,19.414,19.401,8.04]
[1693901517227,55.0,19.414,19.401,8.04]
[1693901517429,55.0,19.415,19.401,8.04]
[1693901519134,63.035,19.415,19.401,8.04]
[1693901519934,55.0,19.415,19.401,8.04]
[1693901521829,88.994,19.415,19.401,8.04]
[1693901525939,88.994,19.415,19.399,8.041]
[1693901528040,26.53,19.41,19.393,25.987]
[1693901528225,8.039,19.405,19.395,8.043]
[1693901528628,8.039,19.405,19.394,8.043]
[1693901529943,55.0,19.404,19.394,8.043]
[1693901530155,8.04,19.403,19.394,8.043]
[1693901530336,55.0,19.404,19.394,8.043]
[1693901531244,63.039,19.404,19.394,8.043]
[1693901532444,93.3209,19.408,19.394,8.043]
[1693901532650,101.3589,19.408,19.394,8.043]
[1693901532834,55.0,19.407,19.394,8.043]
[1693901533146,8.038,19.406,19.394,8.043]
[1693901539248,8.038,19.406,19.394,49.69660824]
[1693901542052,55.0,19.407,19.394,49.69660824]
[1693901542245,93.3209,19.408,19.394,49.69660824]
[1693901542447,8.038,19.407,19.394,49.69660824]
[1693901544952,55.0,19.406,19.394,49.69660824]
[1693901545161,8.039,19.405,19.394,49.69660824]
[1693901546346,8.039,19.405,19.394,8.043]
[1693901547255,55.0,19.404,19.392,8.044]
[1693901547443,8.04,19.402,19.392,8.044]
[1693901547750,55.0,19.401,19.392,8.044]
[1693901549341,89.018,19.401,19.39,26.53]
[1693901549657,89.018,19.401,19.389,8.045]
[1693901549961,89.018,19.401,19.39,20.0]
[1693901550146,89.018,19.401,19.39,28.045]
[1693901550752,63.04,19.401,19.39,28.045]
[1693901551858,63.04,19.401,19.39,8.045]
[1693901552053,93.2011,19.4,19.39,8.045]
[1693901552255,55.0,19.399,19.39,8.045]
[1693901552756,63.041,19.399,19.39,8.045]
[1693901553354,55.0,19.399,19.39,8.045]
[1693901554040,63.041,19.399,19.39,8.045]
[1693901554758,63.041,19.399,19.385,72.36155669]
[1693901554759,63.041,19.399,19.387,8.046]
[1693901555251,63.041,19.399,19.386,8.046]
[1693901560170,63.041,19.399,19.381,40.46621969]
[1693901560362,63.041,19.399,19.384,8.047]
[1693901564864,78.20190767,19.399,19.384,8.047]
[1693901569469,63.041,19.399,19.384,8.047]
[1693901569968,78.38602319,19.399,19.384,8.047]
[1693901571975,23.38602319,19.399,19.384,8.047]
[1693901573859,55.0,19.398,19.384,8.047]
[1693901574059,8.043,19.395,19.384,8.047]
[1693901574272,55.0,19.394,19.384,8.047]
[1693901574867,63.044,19.394,19.384,8.047]
[1693901576071,55.0,19.394,19.384,8.047]
[1693901578777,55.0,19.395,19.384,8.047]
[1693901579078,63.043,19.395,19.384,8.047]
[1693901579378,8.043,19.395,19.384,8.047]
[1693901580664,55.0,19.394,19.384,8.047]
[1693901580865,63.043,19.394,19.384,8.047]
[1693901592402,63.043,19.394,19.38,67.91215574]
[1693901592698,63.043,19.394,19.384,8.047]
[1693901603910,91.4288,19.393,19.384,8.047]
[1693901604205,55.0,19.392,19.384,8.047]
[1693901604506,63.044,19.392,19.384,8.047]
[1693901605808,63.044,19.392,19.38,41.66003095]
[1693901605995,63.044,19.392,19.38,26.53]
[1693901606500,63.044,19.392,19.381,8.048]
[1693901614717,55.0,19.392,19.381,8.048]
[1693901622122,63.044,19.392,19.381,8.048]
[1693901628427,8.044,19.392,19.381,8.048]
[1693901629931,55.0,19.391,19.381,8.048]
[1693901630127,63.045,19.391,19.381,8.048]
[1693901630427,55.0,19.391,19.381,8.048]
[1693901631326,63.044,19.391,19.381,8.048]
[1693901633217,55.0,19.391,19.381,8.048]
[1693901635226,91.4288,19.393,19.381,8.048]
[1693901635530,91.4288,19.393,19.382,25.76075304]
[1693901635719,8.041,19.399,19.385,90.79]
[1693901636632,55.0,19.398,19.385,90.79]
[1693901636831,8.042,19.397,19.385,90.79]
[1693901637033,8.042,19.397,19.385,34.046]
[1693901637932,8.042,19.397,19.385,8.047]
[1693901639934,55.0,19.396,19.385,8.047]
[1693901640127,63.043,19.396,19.385,8.047]
[1693901641628,98.8805,19.395,19.385,8.047]
[1693901642337,106.9235,19.395,19.385,8.047]
[1693901642834,98.8805,19.395,19.385,8.047]
[1693901643931,106.9235,19.395,19.385,8.047]
[1693901644540,98.8805,19.395,19.385,8.047]
[1693901644741,106.9235,19.395,19.385,8.047]
[1693901645038,106.9235,19.395,19.383,15.16563467]
[1693901645233,106.9235,19.395,19.383,8.047]
[1693901651638,106.9235,19.395,19.384,11.93382]
[1693901651839,106.9235,19.395,19.385,63.047]
[1693901652751,8.043,19.395,19.385,63.047]
[1693901652953,8.043,19.395,19.385,8.047]
[1693901653152,8.043,19.395,19.384,11.93382]
[1693901653352,8.043,19.395,19.384,19.98082]
[1693901684474,55.0,19.394,19.384,8.047]
[1693901684674,8.044,19.392,19.384,8.047]
[1693901686172,8.044,19.392,19.381,66.91628069]
[1693901686377,8.044,19.392,19.383,8.048]
[1693901687479,63.044,19.394,19.383,8.048]
[1693901689181,55.0,19.394,19.383,8.048]
[1693901690277,63.043,19.394,19.383,8.048]
[1693901691491,8.043,19.394,19.383,8.048]
[1693901694888,34.03,19.394,19.38,26.53]
[1693901695266,55.0,19.393,19.38,26.53]
[1693901695479,8.045,19.391,19.381,8.048]
[1693901695682,55.0,19.39,19.381,8.048]
[1693901695879,63.045,19.39,19.381,8.048]
[1693901698084,8.045,19.39,19.381,8.048]
[1693901698284,8.045,19.391,19.381,8.048]
[1693901698585,55.0,19.39,19.381,8.048]
[1693901698782,63.045,19.39,19.381,8.048]
[1693901699282,55.0,19.39,19.381,8.048]
[1693901702676,55.0,19.391,19.381,8.048]
[1693901703788,63.045,19.391,19.381,8.048]
[1693901704282,55.0,19.391,19.381,8.048]
[1693901704483,55.0,19.392,19.381,8.048]
[1693901704880,152.3084,19.392,19.381,8.048]
[1693901705390,160.3524,19.392,19.381,8.048]
[1693901706686,160.3524,19.392,19.377,15.40402476]
[1693901706893,217.0764,19.392,19.38,8.049]
[1693901707491,26.53,19.39,19.38,8.049]
[1693901707691,8.046,19.387,19.38,8.049]
[1693901707893,8.046,19.387,19.378,20.0]
[1693901707894,8.046,19.387,19.378,28.05]
[1693901708891,8.046,19.387,19.378,8.05]
[1693901709089,55.0,19.386,19.378,8.05]
[1693901709279,8.048,19.384,19.377,8.05]
[1693901709781,55.0,19.383,19.375,8.051]
[1693901710288,8.048,19.384,19.375,8.051]
[1693901711880,55.0,19.383,19.375,8.051]
[1693901712080,63.048,19.383,19.375,8.051]
[1693901712293,55.0,19.383,19.375,8.051]
[1693901712483,55.0,19.384,19.375,8.051]
[1693901713094,63.047,19.384,19.375,8.051]
[1693901723887,8.047,19.384,19.375,8.051]
[1693901725399,55.0,19.383,19.375,8.051]
[1693901725600,8.048,19.382,19.375,8.051]
[1693901726097,55.0,19.381,19.375,8.051]
[1693901735093,55.0,19.382,19.375,8.051]
[1693901741505,8.048,19.383,19.375,8.051]
[1693901741693,98.4219,19.385,19.375,8.051]
[1693901741694,8.047,19.384,19.375,8.051]
[1693901741900,55.0,19.383,19.375,8.051]
[1693901742298,98.4219,19.385,19.375,8.051]
[1693901742597,106.4689,19.385,19.375,8.051]
[1693901742902,8.047,19.385,19.375,8.051]
[1693901743400,55.0,19.384,19.375,8.051]
[1693901743805,63.047,19.384,19.375,8.051]
[1693901744914,55.0,19.384,19.375,8.051]
[1693901745599,8.047,19.385,19.375,8.051]
[1693901745900,63.047,19.384,19.375,8.051]
[1693901748619,55.0,19.384,19.375,8.051]
[1693901750816,63.048,19.384,19.375,8.051]
[1693901753207,63.048,19.384,19.37,52.548]
[1693901753409,63.048,19.384,19.374,8.051]
[1693901754711,55.0,19.384,19.374,64.828]
[1693901755012,63.048,19.384,19.374,64.828]
[1693901755611,63.048,19.384,19.374,8.051]
[1693901759111,8.048,19.384,19.374,8.051]
[1693901759419,8.048,19.384,19.37,26.53]
[1693901759719,8.053,19.372,19.356,8.059]
[1693901759903,8.055,19.367,19.356,8.059]
[1693901760105,8.055,19.367,19.354,8.06]
[1693901760323,8.057,19.362,19.351,8.061]
[1693901760622,8.057,19.362,19.35,34.591]
[1693901761310,55.0,19.361,19.35,26.53]
[1693901761509,8.058,19.358,19.35,26.53]
[1693901762614,8.058,19.358,19.347,8.063]
[1693901762816,26.034,19.359,19.347,8.063]
[1693901762817,8.059,19.356,19.347,8.063]
[1693901763219,8.059,19.356,19.346,8.063]
[1693901763711,8.059,19.356,19.344,15.80340557]
[1693901763712,34.097,19.356,19.344,15.80340557]
[1693901764218,8.059,19.356,19.344,23.86740557]
[1693901764409,55.0,19.355,19.344,23.86740557]
[1693901764608,8.06,19.354,19.344,23.86740557]
[1693901764817,121.63,19.36,19.344,23.86740557]
[1693901765129,8.056,19.364,19.35,26.53]
[1693901765424,56.787,19.371,19.356,8.059]
[1693901765606,8.054,19.368,19.356,8.059]
[1693901768317,8.055,19.366,19.356,8.059]
[1693901768727,55.0,19.367,19.356,8.059]
[1693901769709,8.055,19.366,19.356,8.059]
[1693901770923,55.0,19.365,19.355,8.059]
[1693901771124,8.057,19.362,19.355,8.059]
[1693901771328,8.056,19.363,19.355,8.059]
[1693901772029,8.056,19.364,19.355,8.059]
[1693901772516,26.024,19.366,19.355,8.059]
[1693901772517,8.055,19.366,19.355,8.059]
[1693901773527,8.055,19.367,19.355,8.059]
[1693901773729,55.0,19.366,19.355,8.059]
[1693901773935,8.055,19.365,19.355,8.059]
[1693901774316,63.055,19.366,19.355,8.059]
[1693901776137,8.055,19.366,19.355,8.059]
[1693901781224,8.055,19.367,19.355,8.059]
[1693901781619,101.0581,19.37,19.36,34.089]
[1693901782131,93.0051,19.37,19.36,34.089]
[1693901783142,2.70796,19.378,19.36,60.779]
[1693901783342,42.27685949,19.381,19.36,60.779]
[1693901783343,22.72856974,19.38,19.36,60.779]
[1693901783637,8.052,19.375,19.36,60.779]
[1693901786228,8.051,19.376,19.36,60.779]
[1693901786542,8.051,19.376,19.36,167.539]
[1693901786744,8.051,19.376,19.36,60.779]
[1693901786943,20.0,19.38,19.36,72.72762]
[1693901787137,2.92235647,19.379,19.36,72.72762]
[1693901788036,57.92235647,19.379,19.36,72.72762]
[1693901788448,8.051,19.376,19.36,72.72762]
[1693901788648,55.0,19.375,19.36,72.72762]
[1693901788844,8.053,19.372,19.36,72.72762]
[1693901789340,8.052,19.373,19.36,72.72762]
[1693901791546,55.0,19.372,19.36,72.72762]
[1693901791733,111.764,19.379,19.36,72.72762]
[1693901791937,8.052,19.374,19.36,72.72762]
[1693901792948,8.051,19.375,19.36,72.72762]
[1693901793144,55.0,19.374,19.36,72.72762]
[1693901793342,8.052,19.374,19.36,72.72762]
[1693901794543,8.051,19.375,19.36,72.72762]
[1693901795852,8.051,19.375,19.361,11.948]
[1693901796049,98.6954,19.376,19.365,34.081]
[1693901796254,8.051,19.375,19.365,34.081]
[1693901801247,98.6954,19.376,19.365,34.081]
[1693901802329,8.05,19.378,19.365,34.081]
[1693901802531,2.3218882,19.379,19.365,34.081]
[1693901802734,2.79370506,19.38,19.365,34.081]
[1693901803150,57.79370506,19.38,19.365,34.081]
[1693901803347,20.0,19.379,19.365,34.081]
[1693901803552,8.05,19.377,19.365,34.081]
[1693901805232,2.29476391,19.376,19.365,34.081]
[1693901805642,8.05,19.377,19.365,34.081]
[1693901805938,34.06,19.377,19.365,34.081]
[1693901806548,2.28117406,19.376,19.365,34.081]
[1693901806740,8.051,19.375,19.365,34.081]
[1693901806941,34.063,19.375,19.365,34.081]
[1693901807337,8.051,19.375,19.365,34.081]
[1693901808944,8.051,19.376,19.365,34.081]
[1693901811057,2.21822951,19.375,19.365,34.081]
[1693901811357,8.051,19.375,19.365,34.081]
[1693901811543,8.051,19.376,19.365,34.081]
[1693901812951,2.23587495,19.375,19.365,34.081]
[1693901813150,8.051,19.375,19.365,34.081]
[1693901813358,8.051,19.377,19.365,34.081]
[1693901813659,2.64014803,19.376,19.365,34.081]
[1693901813850,10.69114803,19.376,19.365,34.081]
[1693901814052,8.051,19.376,19.365,34.081]
[1693901815769,8.051,19.376,19.362,41.1198347]
[1693901815967,57.83245702,19.375,19.364,8.056]
[1693901816178,8.052,19.372,19.364,8.056]
[1693901817049,26.013,19.375,19.364,8.056]
[1693901817574,8.052,19.374,19.364,8.056]
[1693901824660,64.829,19.374,19.361,11.948]
[1693901824960,8.053,19.37,19.362,8.057]
[1693901825573,55.0,19.373,19.362,8.057]
[1693901825868,8.053,19.371,19.362,8.057]
[1693901837997,8.053,19.371,19.356,72.05523966]
[1693901837998,55.0,19.37,19.356,72.05523966]
[1693901838293,8.055,19.366,19.357,26.036]
[1693901839285,8.055,19.366,19.359,8.058]
[1693901840489,64.855,19.366,19.347,15.27427685]
[1693901840695,55.0,19.365,19.347,15.27427685]
[1693901840893,34.091,19.36,19.351,8.061]
[1693901841192,34.091,19.36,19.35,8.061]
[1693901841398,8.059,19.357,19.35,8.061]
[1693901843291,8.058,19.358,19.35,8.061]
[1693901850986,8.058,19.359,19.35,8.061]
[1693901854299,55.0,19.358,19.35,8.061]
[1693901855193,63.058,19.358,19.35,8.061]
[1693901855892,55.0,19.358,19.35,8.061]
[1693901856288,63.058,19.358,19.35,8.061]
[1693901857597,55.0,19.358,19.35,8.061]
[1693901858298,63.058,19.358,19.35,8.061]
[1693901858497,8.058,19.358,19.35,8.061]
[1693901858693,82.844,19.362,19.35,8.061]
[1693901858895,8.058,19.358,19.35,8.061]
[1693901861006,8.058,19.36,19.35,8.061]
[1693901861187,55.0,19.359,19.35,8.061]
[1693901861390,63.058,19.359,19.35,8.061]
[1693901862405,89.092,19.359,19.35,8.061]
[1693901864601,89.092,19.359,19.347,26.049]
[1693901864799,89.092,19.359,19.349,8.062]
[1693901865018,89.092,19.359,19.345,23.53252478]
[1693901871914,34.092,19.359,19.345,23.53252478]
[1693901873308,8.059,19.355,19.345,23.53252478]
[1693901873718,8.059,19.357,19.345,23.53252478]
[1693901874525,55.0,19.356,19.345,23.53252478]
[1693901874725,8.06,19.355,19.345,23.53252478]
[1693901876925,55.0,19.354,19.345,8.063]
[1693901877124,8.06,19.353,19.345,8.063]
[1693901878010,8.06,19.354,19.345,8.063]
[1693901878426,55.0,19.353,19.345,8.063]
[1693901878616,63.061,19.353,19.345,8.063]
[1693901882531,92.2395,19.355,19.345,8.063]
[1693901882842,63.06,19.354,19.345,8.063]
[1693901885618,55.0,19.354,19.345,8.063]
[1693901889616,63.06,19.354,19.345,8.063]
[1693901889817,55.0,19.354,19.345,8.063]
[1693901890022,63.06,19.354,19.345,8.063]
[1693901890536,89.101,19.354,19.345,8.063]
[1693901893333,89.101,19.354,19.34,83.546]
[1693901894830,89.101,19.354,19.345,8.064]
[1693901907533,89.101,19.354,19.34,83.546]
[1693901907750,89.101,19.354,19.341,26.058]
[1693901908830,89.101,19.354,19.343,8.064]
[1693901918545,26.67,19.35,19.342,8.065]
[1693901918746,8.063,19.348,19.341,8.065]
[1693901918951,83.062,19.349,19.342,8.065]
[1693901920246,8.061,19.351,19.342,8.065]
[1693901920543,8.061,19.353,19.342,64.936]
[1693901921739,63.061,19.352,19.342,64.936]
[1693901922739,63.061,19.352,19.342,8.065]
[1693901939958,55.0,19.352,19.342,8.065]
[1693901940345,63.061,19.352,19.342,8.065]
[1693901947076,118.2795,19.355,19.342,8.065]
[1693901947077,92.2395,19.355,19.342,8.065]
[1693901947261,92.2395,19.355,19.343,55.0]
[1693901947569,92.2395,19.355,19.346,90.971]
[1693901948564,26.034,19.36,19.346,90.971]
[1693901948773,20.0,19.359,19.346,90.971]
[1693901949258,28.058,19.359,19.346,90.971]
[1693901950856,55.0,19.358,19.346,90.971]
[1693901951068,8.059,19.357,19.346,90.971]
[1693901951574,8.059,19.357,19.346,34.114]
[1693901953062,55.0,19.356,19.346,34.114]
[1693901953262,8.06,19.353,19.346,34.114]
[1693901953676,8.06,19.353,19.346,8.063]
[1693901954175,8.06,19.353,19.344,8.064]
[1693901954372,55.0,19.352,19.344,8.064]
[1693901954678,8.062,19.35,19.344,8.064]
[1693901955966,76.821,19.359,19.344,8.064]
[1693901956162,8.059,19.356,19.344,8.064]
[1693901956371,55.0,19.355,19.344,8.064]
[1693901956562,8.06,19.354,19.344,8.064]
[1693901956762,55.0,19.353,19.344,8.064]
[1693901956963,63.06,19.353,19.344,8.064]
[1693901958668,55.0,19.353,19.344,8.064]
[1693901959276,63.06,19.353,19.344,8.064]
[1693901965389,63.06,19.353,19.34,52.729]
[1693901966386,63.06,19.353,19.34,26.67]
[1693901966761,63.06,19.353,19.34,8.066]
[1693901966964,63.06,19.353,19.338,26.062]
[1693901966965,8.062,19.348,19.338,8.066]
[1693901967374,8.063,19.346,19.338,8.066]
[1693901967577,63.063,19.347,19.338,8.066]
[1693901968282,8.063,19.347,19.338,8.066]
[1693901969568,8.062,19.348,19.338,8.066]
[1693901970081,55.0,19.347,19.338,8.066]
[1693901971066,63.063,19.347,19.338,8.066]
[1693901972176,55.0,19.347,19.338,8.066]
[1693901973384,63.063,19.347,19.338,8.066]
[1693901973966,8.063,19.347,19.338,8.066]
[1693901974174,94.9158,19.348,19.338,8.066]
[1693901974779,102.9778,19.348,19.338,8.066]
[1693901977573,102.9778,19.348,19.34,26.67]
[1693901977781,94.9158,19.348,19.342,8.065]
[1693901978084,102.9778,19.348,19.342,8.065]
[1693901979982,102.9778,19.348,19.341,8.065]
[1693901981269,102.9778,19.348,19.34,8.066]
[1693901981468,55.0,19.347,19.34,8.066]
[1693901981679,63.063,19.347,19.34,8.066]
[1693901981883,55.0,19.347,19.34,8.066]
[1693901983785,63.063,19.347,19.34,8.066]
[1693901984387,55.0,19.347,19.34,8.066]
[1693901985281,63.063,19.347,19.34,8.066]
[1693901986284,8.063,19.347,19.34,8.066]
[1693901987791,94.9158,19.348,19.34,34.125]
[1693901988682,102.9778,19.348,19.34,34.125]
[1693901989993,102.9778,19.348,19.34,8.066]
[1693901990188,8.062,19.348,19.34,8.066]
[1693901993883,55.0,19.347,19.34,8.066]
[1693901994083,63.063,19.347,19.34,8.066]
[1693901994591,8.063,19.347,19.34,8.066]
[1693901996594,8.063,19.347,19.339,8.066]
[1693901996789,8.063,19.347,19.34,8.066]
[1693902001298,8.063,19.347,19.34,7.566]
[1693902005835,92.1743,19.352,19.34,7.566]
[1693902006128,55.0,19.351,19.34,7.566]
[1693902006428,8.062,19.349,19.34,7.566]
[1693902012822,8.062,19.349,19.34,34.236]
[1693902013123,7.562,19.349,19.34,34.236]
[1693902018442,8.062,19.35,19.34,34.236]
[1693902020627,8.061,19.351,19.34,34.236]
[1693902022236,100.2353,19.352,19.34,34.236]
[1693902029233,26.67,19.35,19.34,7.566]
[1693902029439,8.063,19.347,19.34,7.566]
[1693902033651,34.732,19.35,19.34,7.566]
[1693902033832,75.0,19.349,19.34,7.566]
[1693902034153,83.062,19.349,19.34,7.566]
[1693902037850,8.062,19.349,19.34,7.566]
[1693902038147,8.062,19.35,19.34,64.442]
[1693902038351,8.062,19.35,19.34,7.566]
[1693902041751,55.0,19.349,19.34,7.566]
[1693902042057,8.062,19.348,19.34,7.566]
[1693902051263,8.062,19.348,19.339,8.066]
[1693902051461,55.0,19.347,19.337,40.87693898]
[1693902051760,8.064,19.346,19.34,8.066]
[1693902053559,26.67,19.35,19.34,34.125]
[1693902053760,75.0,19.349,19.34,34.125]
[1693902054155,83.062,19.349,19.34,8.066]
[1693902065875,83.062,19.349,19.34,34.125]
[1693902067478,139.912,19.349,19.333,56.897]
[1693902067777,139.912,19.349,19.337,8.067]
[1693902070083,139.912,19.349,19.333,56.897]
[1693902071667,139.912,19.349,19.337,8.067]
[1693902078984,119.912,19.349,19.337,8.067]
[1693902079482,63.062,19.349,19.337,8.067]
[1693902083087,8.062,19.349,19.337,8.067]
[1693902089896,92.1743,19.352,19.337,8.067]
[1693902090190,75.0,19.351,19.337,8.067]
[1693902090394,8.062,19.349,19.337,8.067]
[1693902110197,8.061,19.353,19.344,8.064]
[1693902119516,8.062,19.35,19.344,8.064]
[1693902122312,8.062,19.35,19.343,8.064]
[1693902133327,55.0,19.352,19.343,8.064]
[1693902133530,34.732,19.35,19.337,8.067]
[1693902133729,34.732,19.35,19.338,8.066]
[1693902133917,75.0,19.349,19.338,8.066]
[1693902134131,8.063,19.346,19.338,8.066]
[1693902158327,8.06,19.354,19.34,26.67]
[1693902158538,8.06,19.354,19.343,90.983]
[1693902160248,55.0,19.353,19.343,90.983]
[1693902160546,63.061,19.353,19.343,90.983]
[1693902163249,63.061,19.353,19.343,34.118]
[1693902167953,8.061,19.353,19.343,34.118]
[1693902169366,8.061,19.353,19.343,8.064]
[1693902171259,8.06,19.354,19.343,64.932]
[1693902177055,8.06,19.355,19.343,64.932]
[1693902178756,8.06,19.355,19.343,76.89112]
[1693902179149,8.059,19.356,19.347,34.112]
[1693902181567,90.076,19.36,19.347,34.112]
[1693902181759,25.76075304,19.363,19.347,34.112]
[1693902181760,8.057,19.361,19.35,26.67]
[1693902181948,8.056,19.364,19.353,90.94]
[1693902182462,8.056,19.364,19.353,8.06]
[1693902182463,34.083,19.364,19.353,8.06]
[1693902192549,8.056,19.364,19.353,8.06]
[1693902205163,129.406,19.37,19.353,8.06]
[1693902205164,8.055,19.367,19.353,8.06]